[Event "FRA-ch Youth U12 2018"]
[Site "Agen"]
[Date "2018.04.15"]
[Round "1"]
[White "Bat, Bilguun"]
[Black "Berg, Timeo"]
[Result "1-0"]
[ECO "B08"]
[WhiteElo "1951"]
[BlackElo "1471"]
[Annotator "NA RC"]
[PlyCount "64"]
[EventDate "2018.??.??"]
[EventType "swiss"]
[EventCountry "FRA"]
[SourceTitle "playchess.com"]
[Source "ChessBase"]
[SourceQuality "1"]
[TimeControl "5400+30"]

1. d4 {[%emt 0:00:00]} Nf6 {[%emt 0:00:17]} 2. Nf3 {[%emt 0:00:00]} g6 {[%emt 0:00:15]} 3. Nc3 {[%emt 0:00:00]} Bg7 {[%emt 0:00:40]} 4. e4 {[%emt 0:00:04]} d6 {[%emt 0:00:13]} 5. Bf4 {[%emt 0:00:07]} O-O {[%emt 0:02:34]} 6. Qd2 {[%emt 0:00:17]} Nbd7 {[%emt 0:06:16]} 7. O-O-O {[%emt 0:00:46]} c5 {[%emt 0:07:26]} 8. dxc5 {[%emt 0:01:17]} Nxc5 {[%emt 0:01:13]} 9. e5 {[%emt 0:01:34]} Nfe4 {[%emt 0:06:48]} 10. Nxe4 {[%emt 0:01:14]} Nxe4 {[%emt 0:00:08]} 11. Qe3 {[%emt 0:03:25]} d5 {[%emt 0:06:49]} 12. Bc4 {[%emt 0:06:53]} e6 {[%emt 0:02:23]} 13. Bd3 {[%emt 0:02:38]} f5 {[%emt 0:08:19]} 14. exf6 {[%emt 0:03:24]} Nxf6 {[%emt 0:00:25]} 15. h3 {[%emt 0:01:05]} Qa5 {[%emt 0:19:51]} 16. a3 {[%emt 0:06:00]} Bd7 {[%emt 0:07:44]} 17. Bh6 {[%emt 0:05:37]} b5 $16 {[%emt 0:10:15]} 18. Bxg7 {[%emt 0:02:52]} Kxg7 {[%emt 0:00:12]} 19. Qd4 {[%emt 0:00:26]} Rac8 {[%emt 0:06:47]} 20. g4 {[%emt 0:01:20]} Kg8 {[%emt 0:02:05]} 21. Ne5 {[%emt 0:00:44]} Qc7 {[%emt 0:04:20]} 22. g5 {[%emt 0:01:06]} Nh5 {[%emt 0:02:28]} 23. Kb1 {[%emt 0:00:59]} Nf4 {[%emt 0:01:04]} 24. Ng4 {[%emt 0:00:35]} Rf7 {[%emt 0:01:38]} 25. Nh6+ {[%emt 0:01:11]} Kf8 {[%emt 0:00:19]} 26. Nxf7 {[%emt 0:00:09]} Nxd3 {[%emt 0:00:29]} 27. cxd3 {[%emt 0:00:41]} Kxf7 {[%emt 0:00:42]} 28. Qf6+ {[%emt 0:00:17]} Kg8 {[%emt 0:00:17]} 29. Rc1 {[%emt 0:00:15]} Qb7 {[%emt 0:00:59]} 30. Rxc8+ {[%emt 0:00:08]} Bxc8 {[%emt 0:00:13]} 31. Qd8+ {[%emt 0:00:21]} Kg7 {[%emt 0:00:18]} 32. Rc1 {[%emt 0:00:07]} Kf7 1-0

[Event "FRA-ch Youth U12 2018"]
[Site "Agen"]
[Date "2018.04.15"]
[Round "1"]
[White "Cornileau, Juliette"]
[Black "Bollengier, Elisa"]
[Result "1-0"]
[ECO "B24"]
[WhiteElo "1654"]
[BlackElo "1149"]
[Annotator "NA RC"]
[PlyCount "45"]
[EventDate "2018.??.??"]
[EventType "swiss"]
[EventCountry "FRA"]
[SourceTitle "playchess.com"]
[Source "ChessBase"]
[SourceQuality "1"]
[TimeControl "5400+30"]

1. e4 {[%emt 0:00:00]} c5 {[%emt 0:00:11]} 2. Nc3 {[%emt 0:00:00]} Nc6 {[%emt 0:00:59]} 3. Bb5 {[%emt 0:00:01]} g6 {[%emt 0:00:42]} 4. Bxc6 {[%emt 0:00:17]} dxc6 {[%emt 0:00:14]} 5. f4 {[%emt 0:01:02]} e6 {[%emt 0:01:52]} 6. Nf3 {[%emt 0:00:20]} Ne7 {[%emt 0:02:12]} 7. d3 {[%emt 0:02:03]} Bg7 {[%emt 0:02:26]} 8. O-O {[%emt 0:02:39]} b5 {[%emt 0:01:21]} 9. e5 {[%emt 0:03:52]} Bb7 {[%emt 0:01:58]} 10. Ne4 {[%emt 0:00:57]} c4 {[%emt 0:02:39]} 11. Nd6+ {[%emt 0:00:27]} Kf8 {[%emt 0:02:21]} 12. Ng5 {[%emt 0:07:31]} Qb6+ {[%emt 0:06:10]} 13. Kh1 {[%emt 0:03:59]} f6 {[%emt 0:03:02]} 14. Nxe6+ {[%emt 0:02:25]} Kg8 {[%emt 0:01:29]} 15. f5 {[%emt 0:14:30]} c5 {[%emt 0:04:32]} 16. fxg6 {[%emt 0:10:03]} hxg6 {[%emt 0:00:32]} 17. Nxg7 {[%emt 0:04:07]} Kxg7 {[%emt 0:03:05]} 18. Rxf6 {[%emt 0:11:48]} Qc7 {[%emt 0:03:21]} 19. Rf7+ {[%emt 0:06:37]} Kg8 {[%emt 0:01:09]} 20. Bg5 {[%emt 0:01:20]} Qc6 {[%emt 0:01:36]} 21. Qf3 {[%emt 0:03:15]} Qc7 {[%emt 0:07:02]} 22. Rg7+ {[%emt 0:01:50]} Kxg7 {[%emt 0:01:04]} 23. Qf7# {[%emt 0:00:06]} 1-0

[Event "FRA-ch Youth U12 2018"]
[Site "Agen"]
[Date "2018.04.15"]
[Round "1"]
[White "Pentcheff, Laura"]
[Black "Riss, Selenia"]
[Result "1-0"]
[ECO "B23"]
[WhiteElo "1512"]
[BlackElo "1138"]
[Annotator "NA RC"]
[PlyCount "75"]
[EventDate "2018.??.??"]
[EventType "swiss"]
[EventCountry "FRA"]
[SourceTitle "playchess.com"]
[Source "ChessBase"]
[SourceQuality "1"]
[TimeControl "5400+30"]

1. e4 {[%emt 0:00:00]} c5 {[%emt 0:00:04]} 2. Nc3 {[%emt 0:00:04]} Nc6 {[%emt 0:00:11]} 3. f4 {[%emt 0:00:22]} d6 {[%emt 0:00:37]} 4. Nf3 {[%emt 0:00:36]} Nf6 {[%emt 0:00:20]} 5. Be2 {[%emt 0:01:31]} g6 {[%emt 0:00:25]} 6. O-O {[%emt 0:00:24]} Bg7 {[%emt 0:00:18]} 7. d3 {[%emt 0:03:46]} O-O {[%emt 0:00:38]} 8. Qe1 {[%emt 0:01:19]} Bg4 {[%emt 0:00:30]} 9. Qg3 {[%emt 0:01:48]} Bxf3 10. Bxf3 {[%emt 0:00:46]} Nd4 {[%emt 0:00:39]} 11. Bd1 {[%emt 0:01:00]} a6 {[%emt 0:02:16]} 12. f5 {[%emt 0:00:35]} b5 {[%emt 0:01:06]} 13. h4 {[%emt 0:04:48]} c4 {[%emt 0:01:54]} 14. dxc4 {[%emt 0:03:28]} b4 {[%emt 0:00:32]} 15. Nd5 {[%emt 0:25:26]} Nxe4 {[%emt 0:01:14]} 16. Qe3 {[%emt 0:02:39]} gxf5 {[%emt 0:00:52]} 17. Nxb4 {[%emt 0:06:57]} e6 {[%emt 0:01:17]} 18. c3 {[%emt 0:01:20]} Qb6 {[%emt 0:00:22]} 19. Nd3 {[%emt 0:01:15]} e5 {[%emt 0:01:22]} 20. cxd4 {[%emt 0:02:12]} exd4 {[%emt 0:01:50]} 21. Qh3 {[%emt 0:02:04]} Rad8 {[%emt 0:00:50]} 22. Rxf5 {[%emt 0:00:35]} d5 {[%emt 0:00:42]} 23. cxd5 {[%emt 0:05:15]} Nc5 {[%emt 0:00:26]} 24. Nxc5 {[%emt 0:02:14]} Qxc5 {[%emt 0:00:05]} 25. Qg3 {[%emt 0:01:26]} Kh8 {[%emt 0:00:24]} 26. Qd3 {[%emt 0:01:51]} Rfe8 {[%emt 0:00:44]} 27. Bd2 {[%emt 0:03:16]} Rd7 {[%emt 0:00:30]} 28. Ba4 {[%emt 0:01:30]} Re3 {[%emt 0:00:09]} 29. Bxe3 {[%emt 0:02:13]} Re7 {[%emt 0:00:35]} 30. Rc1 {[%emt 0:00:47]} Qd6 {[%emt 0:02:07]} 31. Rc8+ {[%emt 0:00:48]} Re8 {[%emt 0:00:05]} 32. Rxe8+ {[%emt 0:00:08]} Bf8 {[%emt 0:00:01]} 33. Qxd4+ {[%emt 0:00:26]} Kg8 {[%emt 0:00:13]} 34. Rg5+ {[%emt 0:00:04]} Qg6 {[%emt 0:00:20]} 35. Rxg6+ {[%emt 0:00:42]} hxg6 {[%emt 0:00:07]} 36. Bh6 {[%emt 0:00:07]} Kh7 {[%emt 0:00:09]} 37. Bxf8 {[%emt 0:00:07]} Kg8 {[%emt 0:00:12]} 38. Qg7# {[%emt 0:00:05]} 1-0

[Event "FRA-ch Youth U12 2018"]
[Site "Agen"]
[Date "2018.04.15"]
[Round "1"]
[White "Cadoux, Maxandre"]
[Black "Droin, Augustin"]
[Result "0-1"]
[ECO "B90"]
[WhiteElo "1480"]
[BlackElo "1975"]
[Annotator "NA RC"]
[PlyCount "54"]
[EventDate "2018.??.??"]
[EventType "swiss"]
[EventCountry "FRA"]
[SourceTitle "playchess.com"]
[Source "ChessBase"]
[SourceQuality "1"]
[TimeControl "5400+30"]

1. e4 {[%emt 0:00:00]} c5 {[%emt 0:00:05]} 2. Nf3 {[%emt 0:00:00]} d6 {[%emt 0:00:05]} 3. d4 {[%emt 0:00:00]} cxd4 {[%emt 0:00:08]} 4. Nxd4 {[%emt 0:00:01]} Nf6 {[%emt 0:00:09]} 5. Nc3 {[%emt 0:00:13]} a6 {[%emt 0:00:06]} 6. f3 {[%emt 0:01:25]} e5 {[%emt 0:00:14]} 7. Nde2 {[%emt 0:17:21]} Be6 {[%emt 0:01:59]} 8. Bg5 {[%emt 0:00:16]} Nbd7 {[%emt 0:00:18]} 9. Qd2 {[%emt 0:16:46]} Rc8 {[%emt 0:01:04]} 10. O-O-O {[%emt 0:02:23]} b5 {[%emt 0:00:43]} 11. Kb1 {[%emt 0:03:19]} Qa5 {[%emt 0:09:31]} 12. b3 {[%emt 0:07:02]} b4 {[%emt 0:13:17]} 13. Na4 {[%emt 0:00:37]} Nc5 {[%emt 0:02:47]} 14. Nxc5 {[%emt 0:03:18]} Rxc5 {[%emt 0:00:22]} 15. Be3 {[%emt 0:01:39]} Rc7 $11 {[%emt 0:02:26]} 16. Ng3 {[%emt 0:03:57]} d5 {[%emt 0:01:03]} 17. exd5 {[%emt 0:06:03]} Nxd5 {[%emt 0:00:30]} 18. Ka1 {[%emt 0:06:37]} Rd7 {[%emt 0:01:03]} 19. a4 {[%emt 0:14:45]} Nc3 {[%emt 0:00:31]} 20. Bb5 {[%emt 0:01:11]} axb5 {[%emt 0:00:42]} 21. Qc1 {[%emt 0:00:52]} bxa4 {[%emt 0:00:13]} 22. Kb2 {[%emt 0:01:40]} Rxd1 {[%emt 0:01:09]} 23. Rxd1 {[%emt 0:00:11]} axb3 {[%emt 0:00:02]} 24. Qa1 {[%emt 0:01:53]} Nxd1+ {[%emt 0:00:19]} 25. Qxd1 {[%emt 0:01:05]} Qa3+ {[%emt 0:00:15]} 26. Kb1 {[%emt 0:00:16]} b2 {[%emt 0:00:02]} 27. c3 {[%emt 0:01:01]} b3 {[%emt 0:00:04]} 0-1

[Event "FRA-ch Youth U12 2018"]
[Site "Agen"]
[Date "2018.04.15"]
[Round "1"]
[White "Lebhertz, Audeleen"]
[Black "Berezovsky, Fiorina"]
[Result "0-1"]
[ECO "B33"]
[WhiteElo "1153"]
[BlackElo "1678"]
[Annotator "NA RC"]
[PlyCount "70"]
[EventDate "2018.??.??"]
[EventType "swiss"]
[EventCountry "FRA"]
[SourceTitle "playchess.com"]
[Source "ChessBase"]
[SourceQuality "1"]
[TimeControl "5400+30"]

1. e4 {[%emt 0:00:00]} c5 {[%emt 0:00:13]} 2. Nf3 {[%emt 0:00:00]} Nc6 {[%emt 0:00:19]} 3. d4 {[%emt 0:00:16]} cxd4 {[%emt 0:00:23]} 4. Nxd4 {[%emt 0:00:11]} Nf6 {[%emt 0:00:23]} 5. Nc3 {[%emt 0:00:45]} e6 {[%emt 0:00:18]} 6. f4 {[%emt 0:01:41]} Bb4 {[%emt 0:01:47]} 7. Nxc6 {[%emt 0:14:24]} bxc6 {[%emt 0:01:09]} 8. Qd3 {[%emt 0:04:51]} O-O {[%emt 0:03:15]} 9. Bd2 {[%emt 0:06:12]} d5 {[%emt 0:10:34]} 10. e5 {[%emt 0:05:31]} d4 {[%emt 0:02:24]} 11. Ne4 {[%emt 0:01:38]} Bxd2+ {[%emt 0:01:44]} 12. Nxd2 {[%emt 0:00:43]} Ng4 13. Nc4 {[%emt 0:12:23]} Ba6 {[%emt 0:05:55]} 14. c3 {[%emt 0:05:02]} Bxc4 {[%emt 0:02:40]} 15. Qxc4 {[%emt 0:00:35]} Ne3 {[%emt 0:00:30]} 16. Qd3 {[%emt 0:05:33]} c5 {[%emt 0:04:39]} 17. a3 {[%emt 0:04:00]} Qd5 {[%emt 0:01:43]} 18. Rc1 {[%emt 0:01:32]} Nxg2+ {[%emt 0:02:04]} 19. Bxg2 {[%emt 0:00:57]} Qxg2 {[%emt 0:00:15]} 20. Qf1 {[%emt 0:02:10]} Qe4+ {[%emt 0:01:01]} 21. Kd1 {[%emt 0:01:02]} dxc3 {[%emt 0:01:18]} 22. Rxc3 {[%emt 0:02:40]} Qb1+ {[%emt 0:02:19]} 23. Rc1 {[%emt 0:04:21]} Rfd8+ {[%emt 0:00:26]} 24. Ke2 {[%emt 0:00:43]} Qxb2+ {[%emt 0:00:29]} 25. Kf3 {[%emt 0:00:35]} Qxa3+ {[%emt 0:00:37]} 26. Kg4 {[%emt 0:00:37]} Rd3 {[%emt 0:05:57]} 27. Qg2 {[%emt 0:01:29]} Rad8 {[%emt 0:02:00]} 28. Rhg1 {[%emt 0:00:51]} g6 {[%emt 0:01:14]} 29. Kh4 {[%emt 0:00:50]} R3d4 {[%emt 0:01:13]} 30. Qg4 {[%emt 0:00:44]} Qb2 {[%emt 0:02:52]} 31. Rgd1 {[%emt 0:00:27]} Qxh2+ {[%emt 0:00:21]} 32. Kg5 {[%emt 0:00:34]} h6+ {[%emt 0:00:27]} 33. Kf6 {[%emt 0:00:48]} Rxf4+ {[%emt 0:01:55]} 34. Qxf4 {[%emt 0:00:36]} Qxf4+ {[%emt 0:00:09]} 35. Ke7 {[%emt 0:00:13]} Qg5# {[%emt 0:00:23]} 0-1

[Event "FRA-ch Youth U12 2018"]
[Site "Agen"]
[Date "2018.04.15"]
[Round "1"]
[White "Jaureguiberry, Azylis"]
[Black "Bousmaha, Leila"]
[Result "0-1"]
[ECO "C47"]
[WhiteElo "1146"]
[BlackElo "1538"]
[Annotator "NA RC"]
[PlyCount "44"]
[EventDate "2018.??.??"]
[EventType "swiss"]
[EventCountry "FRA"]
[SourceTitle "playchess.com"]
[Source "ChessBase"]
[SourceQuality "1"]
[TimeControl "5400+30"]

1. e4 {[%emt 0:00:00]} e5 {[%emt 0:00:23]} 2. Nf3 {[%emt 0:00:00]} Nc6 {[%emt 0:00:10]} 3. Nc3 {[%emt 0:00:00]} Nf6 {[%emt 0:00:24]} 4. d4 {[%emt 0:00:19]} exd4 {[%emt 0:00:19]} 5. Nd5 {[%emt 0:00:14]} Be7 {[%emt 0:01:38]} 6. Bc4 {[%emt 0:07:51]} d6 {[%emt 0:03:04]} 7. O-O {[%emt 0:00:00]} O-O {[%emt 0:04:05]} 8. Re1 {[%emt 0:09:59]} Bg4 {[%emt 0:01:08]} 9. h3 {[%emt 0:02:56]} Bxf3 {[%emt 0:01:44]} 10. Qxf3 {[%emt 0:00:14]} Ne5 {[%emt 0:00:40]} 11. Qb3 {[%emt 0:04:05]} Nxc4 {[%emt 0:02:36]} 12. Qxc4 {[%emt 0:00:17]} Nxd5 {[%emt 0:00:31]} 13. Qxd5 {[%emt 0:02:35]} c6 {[%emt 0:01:30]} 14. Qxd4 {[%emt 0:00:51]} f5 {[%emt 0:03:25]} 15. Bd2 {[%emt 0:03:11]} fxe4 {[%emt 0:03:12]} 16. Rxe4 {[%emt 0:01:46]} d5 {[%emt 0:02:13]} 17. Rg4 {[%emt 0:02:44]} Bf6 {[%emt 0:01:23]} 18. Qf4 {[%emt 0:03:30]} Bxb2 {[%emt 0:02:42]} 19. Qh6 {[%emt 0:04:05]} Bxa1 {[%emt 0:00:59]} 20. c3 {[%emt 0:00:57]} Qf6 {[%emt 0:01:20]} 21. Qe3 {[%emt 0:04:36]} Rae8 {[%emt 0:03:17]} 22. Rb4 {[%emt 0:02:40]} Rxe3 {[%emt 0:01:43]} 0-1

[Event "FRA-ch Youth U12 2018"]
[Site "Agen"]
[Date "2018.04.17"]
[Round "4"]
[White "Razafindratsima, Timothe"]
[Black "Mekhane, Adam"]
[Result "1/2-1/2"]
[ECO "C55"]
[WhiteElo "2146"]
[BlackElo "1907"]
[Annotator "NA"]
[PlyCount "167"]
[EventDate "2018.??.??"]
[EventType "swiss"]
[EventCountry "FRA"]
[SourceTitle "playchess.com"]
[Source "ChessBase"]
[SourceQuality "1"]
[TimeControl "5400+30"]

1. e4 {[%emt 0:00:00]} e5 {[%emt 0:00:01]} 2. Bc4 {[%emt 0:00:00]} Nc6 {[%emt 0:00:27]} 3. Nf3 {[%emt 0:00:02]} Nf6 {[%emt 0:00:05]} 4. d3 {[%emt 0:00:10]} Be7 {[%emt 0:00:26]} 5. O-O {[%emt 0:00:10]} O-O {[%emt 0:00:36]} 6. Re1 {[%emt 0:00:06]} d6 {[%emt 0:00:05]} 7. a4 {[%emt 0:00:05]} Kh8 {[%emt 0:00:31]} 8. a5 {[%emt 0:00:15] C55: Two Knights: 4 d3, 4 d4 exd4 5 e5 and Max Lange Attack} a6 {[%emt 0:00:00]} 9. h3 {[%emt 0:00:09]} Ng8 {[%emt 0:01:28]} 10. Nc3 {[%emt 0:00:06]} f5 {[%emt 0:00:21]} 11. Nd5 {[%emt 0:00:04]} Bf6 {[%emt 0:00:43]} 12. c3 {[%emt 0:03:20]} f4 {[%emt 0:11:02]} 13. d4 {[%emt 0:18:25]} g5 {[%emt 0:09:32]} 14. dxe5 {[%emt 0:03:43]} dxe5 $146 {[%emt 0:01:27]} ({Predecessor:} 14... Bxe5 15. Nxe5 Nxe5 {1-0 (46) Amin,B (2654)-Abhishek,K (2380) Abu Dhabi 2016}) 15. Nh2 {[%emt 0:02:16]} Bg7 {[%emt 0:18:45]} 16. b4 {[%emt 0:05:53]} Nf6 {[%emt 0:08:24]} 17. Ba3 {[%emt 0:10:49]} Nxd5 {[%emt 0:09:43]} 18. Bxd5 {[%emt 0:18:22]} Ne7 {[%emt 0:04:06]} 19. Bb3 {[%emt 0:04:01]} Qe8 {[%emt 0:02:37]} 20. Qd3 {[%emt 0:08:45]} Ng6 {[%emt 0:07:55]} 21. Rad1 {[%emt 0:01:47]} f3 {[%emt 0:03:50]} 22. b5 $17 {[%emt 0:13:07]} (22. g4 $14) 22... Nf4 {[%emt 0:04:58]} 23. Qd2 {[%emt 0:01:00]} Ne2+ {[%emt 0:04:57]} 24. Rxe2 {[%emt 0:01:14]} fxe2 {[%emt 0:00:00]} 25. Qxe2 {[%emt 0:00:09]} Rf6 {[%emt 0:00:56]} 26. bxa6 {[%emt 0:01:44]} Raxa6 {[%emt 0:01:09]} 27. Ba4 {[%emt 0:02:48]} c6 {[%emt 0:02:12]} 28. Qd2 {[%emt 0:03:51]} Be6 {[%emt 0:03:21]} 29. Qd8 {[%emt 0:03:06]} Ra8 {[%emt 0:00:54]} 30. Qb6 {[%emt 0:00:08]} Bf8 {[%emt 0:01:15]} 31. Bc1 {[%emt 0:01:34]} h6 {[%emt 0:01:02]} 32. Qxb7 {[%emt 0:01:05]} Rxa5 33. Bxc6 {[%emt 0:00:14]} Qh5 {[%emt 0:01:36]} 34. Rf1 {[%emt 0:01:06]} Qe2 {[%emt 0:01:16]} 35. Be3 {[%emt 0:01:29]} Qd3 {[%emt 0:01:05]} 36. Qb8 Qxc3 {[%emt 0:00:45]} 37. Qd8 {[%emt 0:01:40]} Rf7 {[%emt 0:00:31]} 38. Bd2 {[%emt 0:00:06]} Qxc6 {[%emt 0:00:38]} 39. Qxa5 {[%emt 0:00:14]} Qxe4 {[%emt 0:00:15]} 40. Re1 {[%emt 0:00:14]} Qd5 {[%emt 0:00:44]} 41. Qxd5 {[%emt 0:00:25]} Bxd5 {[%emt 0:00:02]} 42. Rxe5 {[%emt 0:00:19]} Bb7 {[%emt 0:00:33]} 43. Ng4 {[%emt 0:00:11]} Bg7 {[%emt 0:00:19]} 44. Re8+ {[%emt 0:00:35]} Kh7 {[%emt 0:00:00]} 45. Bb4 {[%emt 0:00:35]} Bc6 {[%emt 0:01:16]} 46. Re7 {[%emt 0:01:17]} Rxe7 {[%emt 0:00:17]} 47. Bxe7 {[%emt 0:00:06]} Kg6 {[%emt 0:00:12]} 48. Ne3 {[%emt 0:00:52]} h5 {[%emt 0:00:42]} 49. Kh2 {[%emt 0:01:04]} Be5+ {[%emt 0:00:24]} 50. g3 {[%emt 0:00:18]} h4 {[%emt 0:00:39]} 51. Ng4 {[%emt 0:00:18]} hxg3+ {[%emt 0:00:17]} 52. fxg3 {[%emt 0:00:07]} Bb8 {[%emt 0:00:22]} 53. Ne3 {[%emt 0:00:31]} Kh5 {[%emt 0:00:33]} 54. Nc2 {[%emt 0:01:00]} Be4 {[%emt 0:00:23]} 55. Nd4 {[%emt 0:00:11]} Bd5 {[%emt 0:00:29]} 56. Nf5 {[%emt 0:00:45]} Kg6 {[%emt 0:00:25]} 57. Ne3 {[%emt 0:00:22]} Be4 {[%emt 0:00:15]} 58. Nc4 {[%emt 0:00:23]} Bd5 {[%emt 0:00:34]} 59. Nb6 {[%emt 0:00:08]} Bc6 {[%emt 0:00:30]} 60. Bd8 {[%emt 0:00:13]} Be5 {[%emt 0:00:44]} 61. Nc4 {[%emt 0:01:06]} Bb8 {[%emt 0:00:24]} 62. Nd2 {[%emt 0:00:15]} Bd5 {[%emt 0:00:17]} 63. Be7 {[%emt 0:00:31]} Bc7 {[%emt 0:00:22]} 64. Bc5 {[%emt 0:00:23]} Bb8 {[%emt 0:00:35]} 65. Be3 {[%emt 0:00:08]} Kh5 {[%emt 0:00:33]} 66. Bd4 {[%emt 0:00:38]} Kg6 {[%emt 0:00:48]} 67. Nf1 {[%emt 0:00:14]} Bc7 {[%emt 0:00:37]} 68. Ne3 {[%emt 0:00:05]} Be6 {[%emt 0:00:19]} 69. Bc5 {[%emt 0:00:12]} Bb8 {[%emt 0:00:30]} 70. Nc2 {[%emt 0:00:06]} Bc7 {[%emt 0:00:55]} 71. Nd4 {[%emt 0:00:03]} Bd5 {[%emt 0:00:12]} 72. Nb5 {[%emt 0:00:13]} Be5 {[%emt 0:01:13]} 73. Bd4 {[%emt 0:00:19]} Bb8 {[%emt 0:00:24]} 74. Nc3 {[%emt 0:00:05]} Bc6 {[%emt 0:00:16]} 75. Ne2 {[%emt 0:00:37]} Bf3 {[%emt 0:00:24]} 76. Nc1 {[%emt 0:00:10]} Be4 {[%emt 0:00:33]} 77. Nb3 {[%emt 0:00:07]} Bd5 {[%emt 0:00:23]} 78. Nc5 {[%emt 0:00:06]} Bc7 {[%emt 0:00:55]} 79. Nd3 Be4 {[%emt 0:00:00]} 80. Nf2 {[%emt 0:00:40]} Bf3 {[%emt 0:01:16]} 81. Be3 {[%emt 0:00:07]} Bb8 {[%emt 0:00:14]} 82. Bd2 {[%emt 0:00:00]} Bd5 {[%emt 0:00:41]} 83. Ng4 {[%emt 0:00:00]} Bf3 {[%emt 0:00:41]} 84. Nf2 {[%emt 0:00:00]} 1/2-1/2

[Event "FRA-ch Youth U12 2018"]
[Site "Agen"]
[Date "2018.04.17"]
[Round "4"]
[White "Droin, Augustin"]
[Black "Gherghinoiu, Lucas"]
[Result "1-0"]
[ECO "B42"]
[WhiteElo "1975"]
[BlackElo "1901"]
[Annotator "NA"]
[PlyCount "51"]
[EventDate "2018.??.??"]
[EventType "swiss"]
[EventCountry "FRA"]
[SourceTitle "playchess.com"]
[Source "ChessBase"]
[SourceQuality "1"]
[TimeControl "5400+30"]

1. e4 {[%emt 0:00:00]} c5 {[%emt 0:00:06]} 2. Nf3 {[%emt 0:00:00]} e6 {[%emt 0:00:05]} 3. d4 {[%emt 0:00:00]} cxd4 {[%emt 0:00:06]} 4. Nxd4 {[%emt 0:00:00]} a6 {[%emt 0:00:05]} 5. Bd3 {[%emt 0:00:00]} d5 {[%emt 0:00:17]} 6. Nc3 {[%emt 0:00:11]} dxe4 {[%emt 0:00:23]} 7. Nxe4 {[%emt 0:00:04]} Be7 {[%emt 0:00:51]} 8. O-O {[%emt 0:02:14]} Nf6 {[%emt 0:01:29]} 9. c3 {[%emt 0:02:55]} O-O {[%emt 0:01:49]} 10. Re1 {[%emt 0:05:56]} Bd7 {[%emt 0:04:20]} 11. Qc2 $14 {[%emt 0:05:01]} g6 {[%emt 0:18:52]} 12. Bh6 {[%emt 0:02:27]} Re8 {[%emt 0:00:40]} 13. Rad1 {[%emt 0:00:23]} Ng4 {[%emt 0:02:01]} 14. Bc1 {[%emt 0:00:19]} Qc7 {[%emt 0:03:14]} 15. Nf3 {[%emt 0:02:39]} f5 {[%emt 0:15:38]} 16. Ng3 {[%emt 0:11:13]} Bc5 {[%emt 0:04:21]} 17. Re2 {[%emt 0:04:13]} e5 {[%emt 0:00:30]} 18. h3 {[%emt 0:00:30]} Nf6 {[%emt 0:00:30]} 19. b4 {[%emt 0:00:30]} Bd6 {[%emt 0:00:30]} 20. Ng5 {[%emt 0:00:30]} Re7 {[%emt 0:00:30]} 21. Qd2 {[%emt 0:00:30]} Be6 {[%emt 0:00:30]} 22. Nxe6 {[%emt 0:00:30]} Rxe6 {[%emt 0:00:30]} 23. Nxf5 {[%emt 0:00:30]} gxf5 {[%emt 0:00:30]} 24. Bxf5 {[%emt 0:00:30]} Re8 {[%emt 0:00:30]} 25. Qxd6 {[%emt 0:00:30]} Qxd6 {[%emt 0:00:30]} 26. Rxd6 {[%emt 0:00:30]} 1-0